fUSD/lending_fUSD_20260607
["ID","MTS","AMOUNT","RATE_DAILY","PERIOD"]
[424354034,1780782655000,-658.96648271,0.00024093,7]
[424354032,1780782655000,-1383.0,0.00024,2]
[424354033,1780782655000,-658.96648271,0.00024025,7]
[424354031,1780782655000,-2000.0,0.00024,7]
[424354035,1780782655000,-658.96648271,0.00024161,14]
[424354028,1780782655000,-1337.0,0.00024,2]
[424354029,1780782655000,-445.0,0.00024,2]
[424354026,1780782655000,-623.0,0.00024,2]
[424354027,1780782655000,-391.0,0.00024,2]
[424354030,1780782655000,-495.0,0.00024,2]
[424354114,1780782656000,-439.12,0.00025,2]
[424354110,1780782656000,-439.12,0.00025,2]
[424354108,1780782656000,-1006.76,0.00025,2]
[424354106,1780782656000,-1006.76,0.00025,2]
[424354129,1780782656000,-2054.15682156,0.0002528,2]
[424354102,1780782656000,-1348.0,0.00025,2]
[424354104,1780782656000,-495.81413638,0.00025,2]
[424354098,1780782656000,-1923.79991138,0.00025,2]
[424354103,1780782656000,-458.32414592,0.00025,2]
[424354100,1780782656000,-637.0,0.00025,2]
[424354112,1780782656000,-439.12,0.00025,2]
[424354105,1780782656000,-1006.76,0.00025,2]
[424354115,1780782656000,-439.12,0.00025,2]
[424354121,1780782656000,-658.96648271,0.0002518,60]
[424354111,1780782656000,-439.12,0.00025,2]
[424354113,1780782656000,-439.12,0.00025,2]
[424354117,1780782656000,-1384.0,0.00025,2]
[424354119,1780782656000,-658.96648271,0.00025112,30]
[424354120,1780782656000,-200.0,0.0002514,2]
[424354118,1780782656000,-658.96648271,0.00025044,30]
[424354122,1780782656000,-500.0,0.00025193,2]
[424354130,1780782656000,-200.0,0.0002528,2]
[424354131,1780782656000,-151.0,0.0002528,2]
[424354124,1780782656000,-323.92354294,0.00025276,2]
[424354123,1780782656000,-658.96648271,0.00025248,60]
[424354101,1780782656000,-399.20650266,0.00025,2]
[424354116,1780782656000,-439.12,0.00025,2]
[424354099,1780782656000,-1484.0,0.00025,2]
[424354072,1780782656000,-300.0,0.00024658,2]
[424354097,1780782656000,-468.50525579,0.00025,2]
[424354070,1780782656000,-151.0,0.00024658,2]
[424354071,1780782656000,-150.0,0.00024658,2]
[424354074,1780782656000,-510.57684065,0.00024658,2]
[424354073,1780782656000,-500.0,0.00024658,2]
[424354077,1780782656000,-290.3986294,0.00024732,2]
[424354075,1780782656000,-658.96648271,0.00024704,30]
[424354078,1780782656000,-1980.8648231,0.00024732,2]
[424354076,1780782656000,-242.15909246,0.00024732,2]
[424354080,1780782656000,-151.0,0.00024732,2]
[424354082,1780782656000,-2884.75459676,0.00024732,2]
[424354079,1780782656000,-200.0,0.00024732,2]
[424354081,1780782656000,-151.0,0.00024732,2]
[424354109,1780782656000,-1006.8,0.00025,2]
[424354083,1780782656000,-290.3986294,0.00024732,2]
[424354085,1780782656000,-1820.05,0.00024777,7]
[424354089,1780782656000,-658.96648271,0.00024908,30]
[424354087,1780782656000,-658.96648271,0.0002484,30]
[424354088,1780782656000,-200.0,0.00024891,2]
[424354086,1780782656000,-881.24754394,0.00024799,2]
[424354096,1780782656000,-689.3692248,0.00025,2]
[424354091,1780782656000,-658.96648271,0.00024976,30]
[424354090,1780782656000,-500.0,0.00024929,2]
[424354094,1780782656000,-252.35551753,0.00025,2]
[424354092,1780782656000,-2103.11928448,0.00025,2]
[424354093,1780782656000,-1052.35310846,0.00025,2]
[424354095,1780782656000,-721.26499228,0.00025,2]
[424354084,1780782656000,-658.96648271,0.00024772,30]
[424354127,1780782656000,-251.11897888,0.0002528,2]
[424354107,1780782656000,-1006.76,0.00025,2]
[424354126,1780782656000,-363.1901091,0.00025278,2]
[424354162,1780782656000,-3642.0,0.00026147,2]
[424354164,1780782656000,-150.0,0.00026198,2]
[424354163,1780782656000,-150.0,0.00026198,2]
[424354159,1780782656000,-1227.0,0.00026147,2]
[424354166,1780782656000,-150.0,0.00026198,2]
[424354171,1780782656000,-270.0455652,0.00026376,2]
[424354172,1780782656000,-242.80105347,0.00026376,2]
[424354168,1780782656000,-150.0,0.00026198,2]
[424354169,1780782656000,-150.0,0.00026198,2]
[424354170,1780782656000,-279.7,0.00026296,2]
[424354177,1780782656000,-230.52665004,0.00026397,2]
[424354174,1780782656000,-529.32302,0.00026384,2]
[424354161,1780782656000,-933.0,0.00026147,2]
[424354178,1780782656000,-362.25757313,0.00026397,2]
[424354176,1780782656000,-529.32302,0.00026384,2]
[424354167,1780782656000,-150.0,0.00026198,2]
[424354173,1780782656000,-529.32302,0.00026384,2]
[424354180,1780782656000,-352.83931306,0.00026397,2]
[424354179,1780782656000,-379.99615448,0.00026397,2]
[424354181,1780782656000,-6630.929561,0.00026723,2]
[424354182,1780782656000,-1125.0,0.00026883,2]
[424354183,1780782656000,-200.0,0.0002691,2]
[424354186,1780782656000,-250.0,0.00027,2]
[424354185,1780782656000,-500.0,0.00026959,14]
[424354184,1780782656000,-280.03725111,0.00026924,2]
[424354125,1780782656000,-621.78829552,0.00025278,2]
[424354175,1780782656000,-529.32302,0.00026384,2]
[424354158,1780782656000,-1274.0,0.00026147,2]
[424354187,1780782656000,-1053.083117,0.00027,2]
[424354160,1780782656000,-382.0,0.00026147,2]
[424354128,1780782656000,-298.17045624,0.0002528,2]
[424354132,1780782656000,-151.0,0.0002528,2]
[424354133,1780782656000,-2991.49051684,0.0002528,2]
[424354136,1780782656000,-200.0,0.00025363,2]
[424354137,1780782656000,-200.0,0.00025392,2]
[424354135,1780782656000,-658.96648271,0.00025316,60]
[424354142,1780782656000,-200.0,0.00025646,2]
[424354157,1780782656000,-3554.0,0.00026147,2]
[424354138,1780782656000,-362.25757313,0.00025397,2]
[424354139,1780782656000,-379.99615448,0.00025397,2]
[424354140,1780782656000,-312.50773146,0.00025417,2]
[424354141,1780782656000,-1125.0,0.00025603,2]
[424354143,1780782656000,-457.93472251,0.00025677,2]
[424354134,1780782656000,-301.14337869,0.0002528,2]
[424354146,1780782656000,-200.0,0.00025828,2]
[424354156,1780782656000,-1358.0,0.00026147,2]
[424354144,1780782656000,-207.17,0.00025736,2]
[424354154,1780782656000,-300.0,0.00026028,2]
[424354165,1780782656000,-150.0,0.00026198,2]
[424354152,1780782656000,-215.80795776,0.00026,10]
[424354151,1780782656000,-550.0,0.00026,2]
[424354155,1780782656000,-200.0,0.00026137,2]
[424354148,1780782656000,-220.12007771,0.00026,2]
[424354149,1780782656000,-27430.75857415,0.00026,10]
[424354153,1780782656000,-150.0,0.00026028,2]
[424354147,1780782656000,-610.98305302,0.0002599,2]
[424354145,1780782656000,-260.4103811,0.00025828,2]
[424354150,1780782656000,-1755.97,0.00026,7]
[424354224,1780782657000,-500.0,0.00027397,2]
[424354228,1780782657000,-500.0,0.00027397,2]
[424354238,1780782657000,-500.0,0.00027397,2]
[424354226,1780782657000,-500.0,0.00027397,2]
[424354222,1780782657000,-500.0,0.00027397,2]
[424354220,1780782657000,-500.0,0.00027397,2]
[424354225,1780782657000,-1936.0,0.00027397,2]
[424354223,1780782657000,-1936.0,0.00027397,2]
[424354216,1780782657000,-500.0,0.00027397,2]
[424354221,1780782657000,-1936.0,0.00027397,2]
[424354219,1780782657000,-1936.0,0.00027397,2]
[424354227,1780782657000,-500.0,0.00027397,2]
[424354242,1780782657000,-1936.0,0.00027397,2]
[424354230,1780782657000,-500.0,0.00027397,2]
[424354231,1780782657000,-500.0,0.00027397,2]
[424354233,1780782657000,-500.0,0.00027397,2]
[424354236,1780782657000,-500.0,0.00027397,2]
[424354235,1780782657000,-500.0,0.00027397,2]
[424354232,1780782657000,-500.0,0.00027397,2]
[424354234,1780782657000,-1936.0,0.00027397,2]
[424354237,1780782657000,-1936.0,0.00027397,2]
[424354239,1780782657000,-500.0,0.00027397,2]
[424354241,1780782657000,-500.0,0.00027397,2]
[424354243,1780782657000,-315.69261864,0.00027397,2]
[424354217,1780782657000,-1936.0,0.00027397,2]
[424354229,1780782657000,-1936.0,0.00027397,2]
[424354218,1780782657000,-500.0,0.00027397,2]
[424354201,1780782657000,-253.33076965,0.00027397,7]
[424354213,1780782657000,-1936.0,0.00027397,2]
[424354245,1780782657000,-1936.0,0.00027397,2]
[424354188,1780782657000,-530.0,0.00027,2]
[424354189,1780782657000,-188.853139,0.00027,2]
[424354190,1780782657000,-2168.5,0.00027008,2]
[424354191,1780782657000,-7565.0,0.00027123,2]
[424354194,1780782657000,-656.0,0.00027137,2]
[424354193,1780782657000,-473.0,0.00027123,2]
[424354196,1780782657000,-275.41505732,0.000273,30]
[424354200,1780782657000,-241.50504875,0.00027397,7]
[424354199,1780782657000,-361.42,0.00027397,2]
[424354203,1780782657000,-1936.0,0.00027397,2]
[424354198,1780782657000,-423.25529335,0.00027397,7]
[424354215,1780782657000,-1936.0,0.00027397,2]
[424354195,1780782657000,-152.0,0.00027283,3]
[424354192,1780782657000,-662.0,0.00027123,2]
[424354202,1780782657000,-223.52073836,0.00027397,30]
[424354205,1780782657000,-1936.0,0.00027397,2]
[424354208,1780782657000,-1936.0,0.00027397,2]
[424354204,1780782657000,-1936.0,0.00027397,2]
[424354206,1780782657000,-1936.0,0.00027397,2]
[424354207,1780782657000,-1936.0,0.00027397,2]
[424354214,1780782657000,-500.0,0.00027397,2]
[424354211,1780782657000,-500.0,0.00027397,2]
[424354210,1780782657000,-1936.0,0.00027397,2]
[424354212,1780782657000,-1936.0,0.00027397,2]
[424354209,1780782657000,-1936.0,0.00027397,2]
[424354197,1780782657000,-174.5382653,0.00027397,7]
[424354244,1780782657000,-150.0,0.00027397,2]
[424354285,1780782657000,-5211.77,0.000274,2]
[424354246,1780782657000,-1936.0,0.00027397,2]
[424354274,1780782657000,-528.8,0.00027397,2]
[424354281,1780782657000,-164.64,0.000274,7]
[424354277,1780782657000,-241.50504875,0.00027397,7]
[424354276,1780782657000,-153.68443336,0.00027397,7]
[424354278,1780782657000,-253.33076965,0.00027397,7]
[424354283,1780782657000,-166.22,0.000274,14]
[424354280,1780782657000,-300.0,0.00027398,2]
[424354279,1780782657000,-150.0,0.00027397,2]
[424354282,1780782657000,-164.43,0.000274,7]
[424354286,1780782657000,-5211.77,0.000274,2]
[424354287,1780782657000,-5211.77,0.000274,2]
[424354290,1780782657000,-204.77677487,0.000275,2]
[424354248,1780782657000,-1500.0,0.00027397,2]
[424354291,1780782657000,-500.0,0.000275,7]
[424354294,1780782657000,-151.54050847,0.00027616,2]
[424354297,1780782657000,-176.32102057,0.00027616,2]
[424354295,1780782657000,-191.06843902,0.00027616,2]
[424354293,1780782657000,-150.21066477,0.00027605,2]
[424354292,1780782657000,-1820.05,0.00027555,7]
[424354296,1780782657000,-203.01290285,0.00027616,2]
[424354299,1780782657000,-188.49736955,0.00027616,2]
[424354298,1780782657000,-172.55940492,0.00027616,2]
[424354303,1780782657000,-350.82706144,0.00027616,2]
[424354302,1780782657000,-164.80333229,0.00027616,2]
[424354301,1780782657000,-259.18238887,0.00027616,2]
[424354300,1780782657000,-330.44945352,0.00027616,2]
[424354289,1780782657000,-290.3986294,0.00027472,2]
[424354284,1780782657000,-5211.77,0.000274,2]
[424354288,1780782657000,-5211.77,0.000274,2]
[424354272,1780782657000,-437.689052,0.00027397,2]
[424354275,1780782657000,-178.34503778,0.00027397,30]
[424354249,1780782657000,-514.75,0.00027397,2]
[424354240,1780782657000,-1936.0,0.00027397,2]
[424354250,1780782657000,-429.38511821,0.00027397,2]
[424354262,1780782657000,-851.821804,0.00027397,2]
[424354260,1780782657000,-173.243901,0.00027397,2]
[424354261,1780782657000,-173.243901,0.00027397,2]
[424354253,1780782657000,-1000.0,0.00027397,20]
[424354252,1780782657000,-1022.45,0.00027397,2]
[424354251,1780782657000,-3084.94,0.00027397,2]
[424354258,1780782657000,-173.243901,0.00027397,2]
[424354254,1780782657000,-1252.01,0.00027397,2]
[424354256,1780782657000,-151.0,0.00027397,2]
[424354247,1780782657000,-1954.11078681,0.00027397,2]
[424354259,1780782657000,-173.243901,0.00027397,2]
[424354255,1780782657000,-300.0,0.00027397,2]
[424354271,1780782657000,-437.689052,0.00027397,2]
[424354270,1780782657000,-437.689052,0.00027397,2]
[424354266,1780782657000,-399.570832,0.00027397,2]
[424354268,1780782657000,-399.570832,0.00027397,2]
[424354267,1780782657000,-399.570832,0.00027397,2]
[424354273,1780782657000,-437.689052,0.00027397,2]
[424354264,1780782657000,-851.821804,0.00027397,2]
[424354265,1780782657000,-851.821804,0.00027397,2]
[424354263,1780782657000,-851.821804,0.00027397,2]
[424354257,1780782657000,-151.0,0.00027397,2]
[424354269,1780782657000,-399.570832,0.00027397,2]
[424354345,1780782658000,-174.74880933,0.0002762,2]
[424354335,1780782658000,-173.82217937,0.0002762,2]
[424354344,1780782658000,-196.42340608,0.0002762,2]
[424354340,1780782658000,-188.33473952,0.0002762,2]
[424354337,1780782658000,-163.20891923,0.0002762,2]
[424354342,1780782658000,-175.513359,0.0002762,2]
[424354338,1780782658000,-152.9847979,0.0002762,2]
[424354343,1780782658000,-157.5190701,0.0002762,2]
[424354333,1780782658000,-194.55911984,0.00027617,2]
[424354341,1780782658000,-157.44874314,0.0002762,2]
[424354347,1780782658000,-173.70648712,0.00027624,2]
[424354336,1780782658000,-254.73279941,0.0002762,2]
[424354348,1780782658000,-167.60811582,0.00027646,2]
[424354352,1780782658000,-196.54620129,0.00027664,2]
[424354349,1780782658000,-169.71627723,0.00027663,2]
[424354351,1780782658000,-157.51584934,0.00027664,2]
[424354346,1780782658000,-190.68298528,0.0002762,2]
[424354353,1780782658000,-152.56556482,0.00027664,2]
[424354354,1780782658000,-656.0,0.00027671,2]
[424354356,1780782658000,-1755.97,0.000277,7]
[424354355,1780782658000,-200.0,0.00027683,2]
[424354357,1780782658000,-498.0,0.0002786,7]
[424354368,1780782658000,-644.79446245,0.00028017,2]
[424354358,1780782658000,-757.03643175,0.00027865,2]
[424354369,1780782658000,-301.14337869,0.0002802,2]
[424354334,1780782658000,-201.52593459,0.0002762,2]
[424354350,1780782658000,-189.1126248,0.00027663,2]
[424354339,1780782658000,-155.99558506,0.0002762,2]
[424354308,1780782658000,-156.65894811,0.00027617,2]
[424354328,1780782658000,-151.49860847,0.00027617,2]
[424354360,1780782658000,-2019.5393159,0.00027998,2]
[424354306,1780782658000,-168.84187041,0.00027616,2]
[424354307,1780782658000,-158.02642334,0.00027616,2]
[424354309,1780782658000,-171.59843808,0.00027617,2]
[424354305,1780782658000,-205.92403431,0.00027616,2]
[424354304,1780782658000,-354.99316983,0.00027616,2]
[424354310,1780782658000,-195.37828652,0.00027617,2]
[424354318,1780782658000,-187.40902671,0.00027617,2]
[424354320,1780782658000,-150.07277216,0.00027617,2]
[424354319,1780782658000,-162.15310142,0.00027617,2]
[424354311,1780782658000,-333.02843627,0.00027617,2]
[424354317,1780782658000,-188.05773219,0.00027617,2]
[424354313,1780782658000,-195.70941246,0.00027617,2]
[424354312,1780782658000,-153.91655154,0.00027617,2]
[424354316,1780782658000,-180.80321223,0.00027617,2]
[424354314,1780782658000,-155.33914974,0.00027617,2]
[424354315,1780782658000,-154.90464809,0.00027617,2]
[424354322,1780782658000,-163.61900795,0.00027617,2]
[424354321,1780782658000,-310.68764905,0.00027617,2]
[424354330,1780782658000,-195.69080593,0.00027617,2]
[424354323,1780782658000,-160.41090509,0.00027617,2]
[424354329,1780782658000,-179.81788634,0.00027617,2]
[424354327,1780782658000,-164.56137404,0.00027617,2]
[424354331,1780782658000,-159.33173006,0.00027617,2]
[424354324,1780782658000,-214.62657479,0.00027617,2]
[424354332,1780782658000,-179.45494152,0.00027617,2]
[424354326,1780782658000,-298.91498468,0.00027617,2]
[424354325,1780782658000,-153.63686778,0.00027617,2]
[424354362,1780782658000,-160.0,0.00028,2]
[424354359,1780782658000,-500.0,0.00027995,2]
[424354364,1780782658000,-166.22,0.00028,14]
[424354396,1780782658000,-857.84,0.00028725,2]
[424354400,1780782658000,-217.00224169,0.00028767,2]
[424354403,1780782658000,-11800.9069065,0.00028774,2]
[424354406,1780782658000,-1670.08,0.00028797,7]
[424354405,1780782658000,-857.84,0.00028788,30]
[424354402,1780782658000,-300.0,0.00028768,2]
[424354399,1780782658000,-857.84,0.00028756,7]
[424354397,1780782658000,-656.0,0.00028739,3]
[424354398,1780782658000,-858.47,0.00028756,7]
[424354404,1780782658000,-858.47,0.00028788,30]
[424354401,1780782658000,-150.0,0.00028767,2]
[424354410,1780782658000,-2627.54,0.00028797,7]
[424354418,1780782658000,-858.47,0.00028883,30]
[424354409,1780782658000,-1649.2,0.00028797,7]
[424354417,1780782658000,-150.0,0.00028855,2]
[424354408,1780782658000,-1274.38,0.00028797,7]
[424354412,1780782658000,-858.47,0.0002882,2]
[424354413,1780782658000,-857.84,0.0002882,2]
[424354415,1780782658000,-857.84,0.00028852,7]
[424354414,1780782658000,-858.47,0.00028852,7]
[424354411,1780782658000,-215.80795776,0.000288,10]
[424354419,1780782658000,-857.84,0.00028883,30]
[424354422,1780782658000,-315.92404621,0.00028907,2]
[424354421,1780782658000,-339.0,0.000289,2]
[424354420,1780782658000,-200.0,0.000289,2]
[424354423,1780782658000,-300.42132955,0.00028907,2]
[424354361,1780782658000,-1352.79582961,0.00028,2]
[424354407,1780782658000,-1642.13,0.00028797,7]
[424354388,1780782658000,-857.84,0.00028661,7]
[424354416,1780782658000,-500.0,0.00028855,2]
[424354386,1780782658000,-2627.54,0.0002863,30]
[424354389,1780782658000,-858.47,0.00028693,30]
[424354365,1780782658000,-600.0,0.00028,2]
[424354366,1780782658000,-215.80795776,0.00028,10]
[424354367,1780782658000,-2000.0,0.00028,7]
[424354370,1780782658000,-377.24028922,0.00028058,2]
[424354371,1780782658000,-361.42,0.0002818,2]
[424354377,1780782658000,-167.60811582,0.00028394,2]
[424354373,1780782658000,-1125.0,0.00028227,5]
[424354379,1780782658000,-168.33,0.00028493,2]
[424354372,1780782658000,-656.0,0.00028205,3]
[424354378,1780782658000,-200.0,0.00028456,2]
[424354375,1780782658000,-164.64,0.000283,7]
[424354376,1780782658000,-164.43,0.000283,7]
[424354374,1780782658000,-279.7,0.00028267,2]
[424354363,1780782658000,-325.0,0.00028,2]
[424354390,1780782658000,-857.84,0.00028693,30]
[424354380,1780782658000,-1670.08,0.0002863,30]
[424354382,1780782658000,-1642.13,0.0002863,30]
[424354393,1780782658000,-1398.02347393,0.00028698,2]
[424354391,1780782658000,-151.90554345,0.00028694,2]
[424354392,1780782658000,-150.0,0.00028694,2]
[424354394,1780782658000,-166.22,0.000287,14]
[424354395,1780782658000,-858.47,0.00028725,2]
[424354383,1780782658000,-1274.38,0.0002863,30]
[424354381,1780782658000,-858.47,0.0002863,2]
[424354385,1780782658000,-1649.2,0.0002863,30]
[424354387,1780782658000,-858.47,0.00028661,7]
[424354384,1780782658000,-857.84,0.0002863,2]
[424354462,1780782659000,-327.23801589,0.00028919,2]
[424354463,1780782659000,-320.82181019,0.00028919,2]
[424354455,1780782659000,-376.11546437,0.00028919,2]
[424354461,1780782659000,-176.28545973,0.00028919,2]
[424354466,1780782659000,-597.82996935,0.00028919,2]
[424354460,1780782659000,-215.78930977,0.00028919,2]
[424354456,1780782659000,-374.81805341,0.00028919,2]
[424354468,1780782659000,-302.99721694,0.00028919,2]
[424354467,1780782659000,-329.12274809,0.00028919,2]
[424354458,1780782659000,-300.14554431,0.00028919,2]
[424354457,1780782659000,-324.30620285,0.00028919,2]
[424354465,1780782659000,-307.27373556,0.00028919,2]
[424354459,1780782659000,-621.37529809,0.00028919,2]
[424354464,1780782659000,-429.25314957,0.00028919,2]
[424354478,1780782659000,-326.41783846,0.00028923,2]
[424354472,1780782659000,-358.90988303,0.00028919,2]
[424354471,1780782659000,-318.66346011,0.00028919,2]
[424354473,1780782659000,-389.11823969,0.00028919,2]
[424354470,1780782659000,-391.38161185,0.00028919,2]
[424354480,1780782659000,-311.99117012,0.00028923,2]
[424354474,1780782659000,-347.41297424,0.00028922,2]
[424354475,1780782659000,-403.05186918,0.00028923,2]
[424354479,1780782659000,-305.9695958,0.00028923,2]
[424354476,1780782659000,-347.64435875,0.00028923,2]
[424354477,1780782659000,-509.46559882,0.00028923,2]
[424354482,1780782659000,-376.66947904,0.00028923,2]
[424354492,1780782659000,-1670.08,0.00028964,2]
[424354469,1780782659000,-359.63577267,0.00028919,2]
[424354454,1780782659000,-187.82311187,0.00028919,2]
[424354425,1780782659000,-857.84,0.00028915,2]
[424354453,1780782659000,-361.60642446,0.00028919,2]
[424354483,1780782659000,-314.89748628,0.00028923,2]
[424354424,1780782659000,-858.47,0.00028915,2]
[424354428,1780782659000,-406.02580571,0.00028919,2]
[424354429,1780782659000,-352.64204114,0.00028919,2]
[424354430,1780782659000,-345.11880984,0.00028919,2]
[424354426,1780782659000,-303.08101693,0.00028919,2]
[424354427,1780782659000,-382.13687805,0.00028919,2]
[424354443,1780782659000,-313.31789621,0.00028919,2]
[424354432,1780782659000,-660.89890705,0.00028919,2]
[424354442,1780782659000,-316.05284669,0.00028919,2]
[424354431,1780782659000,-376.9947391,0.00028919,2]
[424354433,1780782659000,-518.36477774,0.00028919,2]
[424354438,1780782659000,-223.18068202,0.00028919,2]
[424354449,1780782659000,-310.67829948,0.00028919,2]
[424354435,1780782659000,-177.01653405,0.00028919,2]
[424354440,1780782659000,-709.98633966,0.00028919,2]
[424354441,1780782659000,-411.84806861,0.00028919,2]
[424354436,1780782659000,-329.60666457,0.00028919,2]
[424354439,1780782659000,-701.65412287,0.00028919,2]
[424354437,1780782659000,-189.56678385,0.00028919,2]
[424354444,1780782659000,-237.62669559,0.00028919,2]
[424354452,1780782659000,-175.78139797,0.00028919,2]
[424354451,1780782659000,-182.01745809,0.00028919,2]
[424354450,1780782659000,-309.80929619,0.00028919,2]
[424354446,1780782659000,-155.58427189,0.00028919,2]
[424354445,1780782659000,-666.05687254,0.00028919,2]
[424354447,1780782659000,-307.83310308,0.00028919,2]
[424354448,1780782659000,-391.41882491,0.00028919,2]
[424354434,1780782659000,-247.60686755,0.00028919,2]
[424354481,1780782659000,-231.77089231,0.00028923,2]
[424354540,1780782659000,-858.47,0.0002901,2]
[424354484,1780782659000,-348.04737244,0.00028923,2]
[424354511,1780782659000,-1395.83522564,0.00029,2]
[424354520,1780782659000,-527.14288805,0.00029,2]
[424354521,1780782659000,-500.0,0.00029,2]
[424354523,1780782659000,-158.0,0.00029,4]
[424354522,1780782659000,-165.0,0.00029,4]
[424354524,1780782659000,-158.0,0.00029,4]
[424354527,1780782659000,-158.0,0.00029,4]
[424354526,1780782659000,-158.0,0.00029,4]
[424354525,1780782659000,-158.0,0.00029,4]
[424354528,1780782659000,-158.0,0.00029,4]
[424354529,1780782659000,-158.0,0.00029,4]
[424354530,1780782659000,-158.0,0.00029,4]
[424354533,1780782659000,-159.0,0.00029,4]
[424354532,1780782659000,-158.0,0.00029,4]
[424354537,1780782659000,-157.0,0.00029,4]
[424354534,1780782659000,-157.0,0.00029,4]
[424354536,1780782659000,-157.0,0.00029,4]
[424354538,1780782659000,-157.0,0.00029,4]
[424354535,1780782659000,-157.0,0.00029,4]
[424354539,1780782659000,-157.0,0.00029,4]
[424354542,1780782659000,-150.0,0.0002904,2]
[424354541,1780782659000,-857.84,0.0002901,2]
[424354544,1780782659000,-857.84,0.00029042,7]
[424354543,1780782659000,-858.47,0.00029042,7]
[424354545,1780782659000,-858.47,0.00029074,30]
[424354546,1780782659000,-857.84,0.00029074,30]
[424354493,1780782659000,-1642.13,0.00028964,2]
[424354510,1780782659000,-265.75,0.00029,2]
[424354512,1780782659000,-1000.66450105,0.00029,2]
[424354531,1780782659000,-158.0,0.00029,4]
[424354518,1780782659000,-500.0,0.00029,2]
[424354489,1780782659000,-858.47,0.00028947,7]
[424354516,1780782659000,-500.0,0.00029,2]
[424354485,1780782659000,-315.03814019,0.00028923,2]
[424354490,1780782659000,-857.84,0.00028947,7]
[424354488,1780782659000,-381.36597057,0.00028923,2]
[424354491,1780782659000,-361.41999999,0.00028963,2]
[424354487,1780782659000,-223.84903562,0.00028923,2]
[424354494,1780782659000,-1274.38,0.00028964,2]
[424354495,1780782659000,-1649.2,0.00028964,2]
[424354497,1780782659000,-378.22524959,0.00028967,2]
[424354499,1780782659000,-393.09240258,0.00028968,2]
[424354501,1780782659000,-332.86279537,0.00028968,2]
[424354496,1780782659000,-2627.54,0.00028964,2]
[424354500,1780782659000,-305.13112965,0.00028968,2]
[424354486,1780782659000,-392.84681217,0.00028923,2]
[424354509,1780782659000,-200.0,0.00029,2]
[424354504,1780782659000,-194.000028,0.00028971,2]
[424354506,1780782659000,-857.84,0.00028979,30]
[424354502,1780782659000,-179.97120458,0.00028971,2]
[424354505,1780782659000,-858.47,0.00028979,30]
[424354503,1780782659000,-164.68866913,0.00028971,2]
[424354517,1780782659000,-500.0,0.00029,2]
[424354508,1780782659000,-200.0,0.00029,2]
[424354514,1780782659000,-511.34900412,0.00029,2]
[424354498,1780782659000,-315.03169869,0.00028968,2]
[424354513,1780782659000,-219.75991866,0.00029,2]
[424354515,1780782659000,-500.0,0.00029,2]
[424354507,1780782659000,-200.0,0.00029,2]
[424354519,1780782659000,-215.80795776,0.00029,30]
[424354587,1780782660000,-1383.0,0.00029332,30]
[424354590,1780782660000,-671.0,0.00029347,30]
[424354594,1780782660000,-623.0,0.00029347,30]
[424354592,1780782660000,-1920.0,0.00029347,30]
[424354589,1780782660000,-719.0,0.00029347,30]
[424354580,1780782660000,-1649.2,0.00029299,7]
[424354595,1780782660000,-391.0,0.00029347,30]
[424354583,1780782660000,-179.97120458,0.00029319,2]
[424354578,1780782660000,-1642.13,0.00029299,7]
[424354575,1780782660000,-656.0,0.00029273,4]
[424354585,1780782660000,-445.0,0.00029332,30]
[424354581,1780782660000,-2627.54,0.00029299,7]
[424354593,1780782660000,-1467.0,0.00029347,30]